[Event "Titled Tuesday Blitz July 18 Early 2023"]
[White "WindWhistler11"]
[Black "Amilal Munkhdalai"]
[BlackFideId "4903250"]
[WhiteElo "2470"]
[BlackElo "2710"]
[Result "0-1"]
[Round "3"]
[TimeControl "180+2"]
[Date "2023.07.18"]
[WhiteClock "0:00:00"]
[BlackClock "0:00:54"]
[Board "83"]

1. Nf3 {[%clk 0:02:56]}  Nf6 {[%clk 0:02:59]} 2. g3 {[%clk 0:02:56]}  d5 {[%clk 0:02:58]} 3. c4 {[%clk 0:02:56]}  c6 {[%clk 0:02:58]} 4. Bg2 {[%clk 0:02:56]}  Bf5 {[%clk 0:02:58]} 5. O-O {[%clk 0:02:56]}  e6 {[%clk 0:02:58]} 6. b3 {[%clk 0:02:56]}  h6 {[%clk 0:02:58]} 7. Bb2 {[%clk 0:02:56]}  Nbd7 {[%clk 0:02:59]} 8. d3 {[%clk 0:02:56]}  Be7 {[%clk 0:02:58]} 9. Nbd2 {[%clk 0:02:57]}  O-O {[%clk 0:02:58]} 10. Qc2 {[%clk 0:02:56]}  Bh7 {[%clk 0:02:57]} 11. a3 {[%clk 0:02:56]}  a5 {[%clk 0:02:57]} 12. Rfe1 {[%clk 0:02:54]}  Re8 {[%clk 0:02:57]} 13. Rad1 {[%clk 0:02:53]}  Qb6 {[%clk 0:02:54]} 14. Rb1 {[%clk 0:02:27]}  Bf8 {[%clk 0:02:49]} 15. b4 {[%clk 0:02:06]}  axb4 {[%clk 0:02:48]} 16. axb4 {[%clk 0:02:07]}  Bxb4 {[%clk 0:02:47]} 17. Bc3 {[%clk 0:02:05]}  c5 {[%clk 0:02:47]} 18. Bxb4 {[%clk 0:01:59]}  cxb4 {[%clk 0:02:47]} 19. Qb3 {[%clk 0:01:59]}  Ng4 {[%clk 0:02:36]} 20. Rf1 {[%clk 0:01:45]}  dxc4 {[%clk 0:02:01]} 21. Nxc4 {[%clk 0:01:42]}  Qc5 {[%clk 0:01:57]} 22. Qxb4 {[%clk 0:01:39]}  Qxb4 {[%clk 0:01:57]} 23. Rxb4 {[%clk 0:01:40]}  Ra2 {[%clk 0:01:56]} 24. Rxb7 {[%clk 0:01:28]}  Nc5 {[%clk 0:01:52]} 25. Rc7 {[%clk 0:01:23]}  Nb3 {[%clk 0:01:51]} 26. h3 {[%clk 0:01:16]}  Nf6 {[%clk 0:01:50]} 27. Nd6 {[%clk 0:01:13]}  Rf8 {[%clk 0:01:48]} 28. Ne5 {[%clk 0:00:59]}  Bg6 {[%clk 0:01:47]} 29. Nxg6 {[%clk 0:00:58]}  fxg6 {[%clk 0:01:47]} 30. e3 {[%clk 0:00:55]}  Re2 {[%clk 0:01:27]} 31. Rb1 {[%clk 0:00:42]}  Nd2 {[%clk 0:01:23]} 32. Rbb7 {[%clk 0:00:38]}  Nh5 {[%clk 0:01:23]} 33. f4 {[%clk 0:00:11]}  Ra8 {[%clk 0:00:59]} 34. g4 {[%clk 0:00:00]}  Ra1+ {[%clk 0:00:54]} 0-1


[Site "https://www.chess.com"]

[Event "Titled Tuesday Blitz July 18 Early 2023"]
[White "Besedes, Danilo"]
[Black "Liyanage, Ranindu Dilshan"]
[WhiteFideId "946796"]
[BlackFideId "9915834"]
[WhiteElo "2464"]
[BlackElo "2695"]
[Result "0-1"]
[Round "3"]
[TimeControl "180+2"]
[Date "2023.07.18"]
[WhiteClock "0:00:21"]
[BlackClock "0:00:16"]
[Board "85"]

1. b3 {[%clk 0:02:59]}  e5 {[%clk 0:02:59]} 2. Bb2 {[%clk 0:02:59]}  Nc6 {[%clk 0:03:00]} 3. e3 {[%clk 0:03:00]}  Nf6 {[%clk 0:02:56]} 4. Bb5 {[%clk 0:03:00]}  Bd6 {[%clk 0:02:55]} 5. Ne2 {[%clk 0:03:00]}  O-O {[%clk 0:02:55]} 6. O-O {[%clk 0:02:57]}  Re8 {[%clk 0:02:52]} 7. Ng3 {[%clk 0:02:57]}  a6 {[%clk 0:02:44]} 8. Bd3 {[%clk 0:02:50]}  Bf8 {[%clk 0:02:42]} 9. Nc3 {[%clk 0:02:48]}  d5 {[%clk 0:02:42]} 10. f4 {[%clk 0:02:45]}  exf4 {[%clk 0:02:40]} 11. Rxf4 {[%clk 0:02:44]}  Bd6 {[%clk 0:02:40]} 12. Rf1 {[%clk 0:02:39]}  Ng4 {[%clk 0:02:38]} 13. Qf3 {[%clk 0:02:25]}  Nce5 {[%clk 0:02:33]} 14. Qxd5 {[%clk 0:02:14]}  Qh4 {[%clk 0:02:30]} 15. h3 {[%clk 0:02:10]}  Be6 {[%clk 0:01:39]} 16. Qe4 {[%clk 0:01:59]}  Nxd3 {[%clk 0:01:38]} 17. Nf5 {[%clk 0:01:07]}  Bxf5 {[%clk 0:00:46]} 18. Qxf5 {[%clk 0:01:08]}  Qg3 {[%clk 0:00:19]} 19. Rf3 {[%clk 0:00:40]}  Qh2+ {[%clk 0:00:16]} 20. Kf1 {[%clk 0:00:41]}  Qh1+ {[%clk 0:00:16]} 21. Ke2 {[%clk 0:00:39]}  Qxg2+ {[%clk 0:00:17]} 22. Kxd3 {[%clk 0:00:21]}  Ne5+ {[%clk 0:00:16]} 0-1


[Site "https://www.chess.com"]

[Event "Titled Tuesday Blitz July 18 Early 2023"]
[White "Aakanksha Hagawane"]
[Black "Kantans, Toms"]
[WhiteFideId "25014510"]
[BlackFideId "11602945"]
[WhiteElo "2464"]
[BlackElo "2687"]
[Result "0-1"]
[Round "3"]
[TimeControl "180+2"]
[Date "2023.07.18"]
[WhiteClock "0:00:00"]
[BlackClock "0:02:08"]
[Board "86"]

1. e4 {[%clk 0:03:00]}  c5 {[%clk 0:02:59]} 2. Nf3 {[%clk 0:03:00]}  Nf6 {[%clk 0:02:59]} 3. d3 {[%clk 0:02:57]}  Nc6 {[%clk 0:02:58]} 4. g3 {[%clk 0:02:56]}  g6 {[%clk 0:02:58]} 5. Bg2 {[%clk 0:02:56]}  Bg7 {[%clk 0:02:58]} 6. Nbd2 {[%clk 0:02:57]}  O-O {[%clk 0:02:58]} 7. O-O {[%clk 0:02:57]}  e5 {[%clk 0:02:56]} 8. Re1 {[%clk 0:02:57]}  h6 {[%clk 0:02:54]} 9. Nc4 {[%clk 0:02:38]}  Qc7 {[%clk 0:02:42]} 10. a4 {[%clk 0:02:33]}  Re8 {[%clk 0:02:40]} 11. Be3 {[%clk 0:02:25]}  b6 {[%clk 0:02:37]} 12. h3 {[%clk 0:02:22]}  Ba6 {[%clk 0:02:26]} 13. b3 {[%clk 0:02:09]}  Rad8 {[%clk 0:02:26]} 14. Qc1 {[%clk 0:02:05]}  Kh7 {[%clk 0:02:25]} 15. Bd2 {[%clk 0:01:58]}  d5 {[%clk 0:02:24]} 16. exd5 {[%clk 0:01:58]}  Nxd5 {[%clk 0:02:25]} 17. Nh2 {[%clk 0:01:49]}  Nd4 {[%clk 0:02:23]} 18. Ng4 {[%clk 0:01:39]}  f5 {[%clk 0:02:22]} 19. Nxh6 {[%clk 0:01:12]}  Bb7 {[%clk 0:02:22]} 20. h4 {[%clk 0:00:55]}  Nf6 {[%clk 0:02:11]} 21. Nd6 {[%clk 0:00:00]}  Rxd6 {[%clk 0:02:08]} 0-1


[Site "https://www.chess.com"]

[Event "Titled Tuesday Blitz July 18 Early 2023"]
[White "Bochnicka, Vladimir"]
[Black "Koshulyan, Egor A."]
[WhiteFideId "14943450"]
[BlackFideId "24237000"]
[WhiteElo "2464"]
[BlackElo "2662"]
[Result "0-1"]
[Round "3"]
[TimeControl "180+2"]
[Date "2023.07.18"]
[WhiteClock "0:00:00"]
[BlackClock "0:01:09"]
[Board "87"]

1. e3 {[%clk 0:02:53]}  g6 {[%clk 0:02:53]} 2. d4 {[%clk 0:02:53]}  Bg7 {[%clk 0:02:53]} 3. Nf3 {[%clk 0:02:53]}  b6 {[%clk 0:02:53]} 4. Bd3 {[%clk 0:02:53]}  Bb7 {[%clk 0:02:54]} 5. Nbd2 {[%clk 0:02:52]}  Nf6 {[%clk 0:02:50]} 6. O-O {[%clk 0:02:52]}  O-O {[%clk 0:02:50]} 7. b3 {[%clk 0:02:53]}  d5 {[%clk 0:02:49]} 8. Bb2 {[%clk 0:02:53]}  Nbd7 {[%clk 0:02:49]} 9. Ne5 {[%clk 0:02:51]}  Rc8 {[%clk 0:02:49]} 10. f4 {[%clk 0:02:50]}  c5 {[%clk 0:02:50]} 11. Qf3 {[%clk 0:02:43]}  Ne8 {[%clk 0:02:40]} 12. Qh3 {[%clk 0:02:40]}  Ndf6 {[%clk 0:02:39]} 13. c4 {[%clk 0:02:25]}  e6 {[%clk 0:02:36]} 14. g4 {[%clk 0:02:19]}  Nd6 {[%clk 0:02:34]} 15. g5 {[%clk 0:02:16]}  Nfe4 {[%clk 0:02:35]} 16. Nxe4 {[%clk 0:02:09]}  dxe4 {[%clk 0:02:34]} 17. Be2 {[%clk 0:02:05]}  Nf5 {[%clk 0:02:30]} 18. Rad1 {[%clk 0:01:50]}  cxd4 {[%clk 0:02:26]} 19. Bxd4 {[%clk 0:01:47]}  Qc7 {[%clk 0:02:21]} 20. Ba1 {[%clk 0:01:36]}  Rfd8 {[%clk 0:02:14]} 21. Ng4 {[%clk 0:01:34]}  Bxa1 {[%clk 0:02:02]} 22. Rxa1 {[%clk 0:01:33]}  Kg7 {[%clk 0:02:03]} 23. Rad1 {[%clk 0:01:05]}  Qc5 {[%clk 0:02:00]} 24. b4 {[%clk 0:00:26]}  Qxb4 {[%clk 0:01:55]} 25. Nf6 {[%clk 0:00:26]}  h5 {[%clk 0:01:54]} 26. Bg4 {[%clk 0:00:09]}  hxg4 {[%clk 0:01:29]} 27. Qh7+ {[%clk 0:00:09]}  Kf8 {[%clk 0:01:30]} 28. Nd7+ {[%clk 0:00:04]}  Ke7 {[%clk 0:01:18]} 29. Ne5 {[%clk 0:00:05]}  Nd6 {[%clk 0:01:12]} 30. Nxg6+ {[%clk 0:00:04]}  Kd7 {[%clk 0:01:11]} 31. Qxf7+ {[%clk 0:00:05]}  Kc6 {[%clk 0:01:11]} 32. Qxe6 {[%clk 0:00:06]}  Qc5 {[%clk 0:01:08]} 33. Ne5+ {[%clk 0:00:04]}  Kc7 {[%clk 0:01:09]} 34. Qe7+ {[%clk 0:00:04]}  Kb8 {[%clk 0:01:09]} 35. Nd7+ {[%clk 0:00:05]}  Rxd7 {[%clk 0:01:09]} 36. Qxd7 {[%clk 0:00:05]}  Qxe3+ {[%clk 0:01:10]} 37. Kh1 {[%clk 0:00:06]}  Nxc4 {[%clk 0:01:10]} 38. Rde1 {[%clk 0:00:04]}  Qc5 {[%clk 0:01:09]} 39. Qxg4 {[%clk 0:00:04]}  e3+ {[%clk 0:01:09]} 40. Rf3 {[%clk 0:00:02]}  Qd5 {[%clk 0:01:09]} 41. Kg2 {[%clk 0:00:02]}  Nd2 {[%clk 0:01:08]} 42. Rxe3 {[%clk 0:00:02]}  Nxf3 {[%clk 0:01:09]} 43. Rxf3 {[%clk 0:00:02]}  Rc2+ {[%clk 0:01:10]} 44. Kg3 {[%clk 0:00:02]}  Qd2 {[%clk 0:01:09]} 45. Rf2 {[%clk 0:00:00]}  Qxf2+ {[%clk 0:01:09]} 0-1


[Site "https://www.chess.com"]

[Event "Titled Tuesday Blitz July 18 Early 2023"]
[White "Martin Barcelo, Carles"]
[Black "Arhan_Anand"]
[WhiteFideId "24561444"]
[WhiteElo "2462"]
[BlackElo "2660"]
[Result "0-1"]
[Round "3"]
[TimeControl "180+2"]
[Date "2023.07.18"]
[WhiteClock "0:00:00"]
[BlackClock "0:00:20"]
[Board "88"]

1. e4 {[%clk 0:03:00]}  b6 {[%clk 0:02:57]} 2. d4 {[%clk 0:02:56]}  Bb7 {[%clk 0:02:58]} 3. Bd3 {[%clk 0:02:56]}  Nf6 {[%clk 0:02:58]} 4. Qe2 {[%clk 0:02:56]}  e6 {[%clk 0:02:57]} 5. Nf3 {[%clk 0:02:55]}  c5 {[%clk 0:02:57]} 6. c3 {[%clk 0:02:54]}  Nc6 {[%clk 0:02:55]} 7. O-O {[%clk 0:02:49]}  cxd4 {[%clk 0:02:51]} 8. cxd4 {[%clk 0:02:50]}  Nb4 {[%clk 0:02:50]} 9. Nc3 {[%clk 0:02:50]}  Nxd3 {[%clk 0:02:49]} 10. Qxd3 {[%clk 0:02:51]}  Be7 {[%clk 0:02:49]} 11. d5 {[%clk 0:02:48]}  d6 {[%clk 0:02:23]} 12. dxe6 {[%clk 0:02:36]}  fxe6 {[%clk 0:02:24]} 13. Qb5+ {[%clk 0:02:36]}  Qd7 {[%clk 0:02:23]} 14. Nd4 {[%clk 0:02:32]}  Qxb5 {[%clk 0:02:09]} 15. Ncxb5 {[%clk 0:02:33]}  Kd7 {[%clk 0:02:09]} 16. f3 {[%clk 0:02:30]}  a6 {[%clk 0:02:06]} 17. Nc3 {[%clk 0:02:30]}  Rac8 {[%clk 0:02:04]} 18. Be3 {[%clk 0:02:29]}  b5 {[%clk 0:02:04]} 19. a3 {[%clk 0:02:28]}  Rc4 {[%clk 0:02:02]} 20. Rfd1 {[%clk 0:02:28]}  Rhc8 {[%clk 0:01:48]} 21. h3 {[%clk 0:02:11]}  g6 {[%clk 0:01:37]} 22. Kf2 {[%clk 0:02:06]}  e5 {[%clk 0:01:37]} 23. Nb3 {[%clk 0:02:02]}  Ba8 {[%clk 0:01:09]} 24. Na5 {[%clk 0:01:59]}  R4c7 {[%clk 0:01:10]} 25. Bb6 {[%clk 0:01:59]}  Rxc3 {[%clk 0:01:10]} 26. bxc3 {[%clk 0:01:58]}  Rxc3 {[%clk 0:01:11]} 27. Rdc1 {[%clk 0:01:51]}  Rxc1 {[%clk 0:00:35]} 28. Rxc1 {[%clk 0:01:51]}  Ne8 {[%clk 0:00:35]} 29. Ke2 {[%clk 0:01:39]}  d5 {[%clk 0:00:35]} 30. exd5 {[%clk 0:01:38]}  Bxd5 {[%clk 0:00:36]} 31. Bc5 {[%clk 0:01:16]}  Nd6 {[%clk 0:00:36]} 32. Rd1 {[%clk 0:01:09]}  Ke6 {[%clk 0:00:35]} 33. Bb4 {[%clk 0:01:06]}  h5 {[%clk 0:00:29]} 34. g3 {[%clk 0:01:04]}  e4 {[%clk 0:00:26]} 35. fxe4 {[%clk 0:01:01]}  Nxe4 {[%clk 0:00:26]} 36. Rxd5 {[%clk 0:00:32]}  Bxb4 {[%clk 0:00:26]} 37. Rd4 {[%clk 0:00:32]}  Nc3+ {[%clk 0:00:25]} 38. Kd3 {[%clk 0:00:31]}  Bxa5 {[%clk 0:00:26]} 39. g4 {[%clk 0:00:29]}  hxg4 {[%clk 0:00:25]} 40. Rxg4 {[%clk 0:00:29]}  Kf6 {[%clk 0:00:23]} 41. Rd4 {[%clk 0:00:29]}  Ke5 {[%clk 0:00:20]} 42. Rd7 {[%clk 0:00:26]}  Nd5 {[%clk 0:00:20]} 43. h4 {[%clk 0:00:20]}  Bb6 {[%clk 0:00:19]} 44. Rb7 {[%clk 0:00:17]}  Bc5 {[%clk 0:00:18]} 45. Rg7 {[%clk 0:00:16]}  Kf6 {[%clk 0:00:18]} 46. Rd7 {[%clk 0:00:15]}  Ke5 {[%clk 0:00:18]} 47. Rg7 {[%clk 0:00:15]}  Bxa3 {[%clk 0:00:18]} 48. Rxg6 {[%clk 0:00:15]}  Nf4+ {[%clk 0:00:17]} 49. Ke3 {[%clk 0:00:13]}  Nxg6 {[%clk 0:00:18]} 50. h5 {[%clk 0:00:14]}  Nf8 {[%clk 0:00:17]} 51. h6 {[%clk 0:00:14]}  Be7 {[%clk 0:00:18]} 52. Kd3 {[%clk 0:00:14]}  Bg5 {[%clk 0:00:18]} 53. Kc3 {[%clk 0:00:15]}  a5 {[%clk 0:00:19]} 54. Kb3 {[%clk 0:00:15]}  Bxh6 {[%clk 0:00:19]} 55. Ka3 {[%clk 0:00:16]}  Bg7 {[%clk 0:00:19]} 56. Kb3 {[%clk 0:00:17]}  Kd4 {[%clk 0:00:20]} 57. Ka3 {[%clk 0:00:18]}  Kc3 {[%clk 0:00:21]} 58. Ka2 {[%clk 0:00:18]}  Ne6 {[%clk 0:00:20]} 59. Kb1 {[%clk 0:00:19]}  Nc5 {[%clk 0:00:21]} 60. Ka2 {[%clk 0:00:00]}  Kc2 {[%clk 0:00:20]} 0-1


[Site "https://www.chess.com"]

[Event "Titled Tuesday Blitz July 18 Early 2023"]
[White "Matyukov, Petr"]
[Black "Schwabeneder, Florian"]
[WhiteFideId "4103688"]
[BlackFideId "1626191"]
[WhiteElo "2455"]
[BlackElo "2635"]
[Result "0-1"]
[Round "3"]
[TimeControl "180+2"]
[Date "2023.07.18"]
[WhiteClock "0:00:00"]
[BlackClock "0:00:43"]
[Board "92"]

1. d4 {[%clk 0:03:00]}  Nf6 {[%clk 0:02:59]} 2. c4 {[%clk 0:03:00]}  c5 {[%clk 0:02:58]} 3. d5 {[%clk 0:03:00]}  g6 {[%clk 0:02:58]} 4. Nc3 {[%clk 0:02:56]}  Bg7 {[%clk 0:02:58]} 5. Nf3 {[%clk 0:02:54]}  O-O {[%clk 0:02:57]} 6. h3 {[%clk 0:02:55]}  e6 {[%clk 0:02:49]} 7. Bf4 {[%clk 0:02:55]}  exd5 {[%clk 0:02:47]} 8. cxd5 {[%clk 0:02:55]}  Re8 {[%clk 0:02:31]} 9. e3 {[%clk 0:02:53]}  d6 {[%clk 0:02:27]} 10. Bd3 {[%clk 0:02:46]}  Na6 {[%clk 0:02:21]} 11. O-O {[%clk 0:02:35]}  Nb4 {[%clk 0:02:20]} 12. Bc4 {[%clk 0:02:30]}  a6 {[%clk 0:02:09]} 13. a3 {[%clk 0:02:28]}  b5 {[%clk 0:02:09]} 14. Bxb5 {[%clk 0:01:51]}  axb5 {[%clk 0:02:05]} 15. axb4 {[%clk 0:01:51]}  Rxa1 {[%clk 0:02:03]} 16. Qxa1 {[%clk 0:01:52]}  cxb4 {[%clk 0:02:03]} 17. Nxb5 {[%clk 0:01:52]}  Nxd5 {[%clk 0:02:03]} 18. Nxd6 {[%clk 0:01:48]}  Nxf4 {[%clk 0:01:34]} 19. Nxe8 {[%clk 0:01:44]}  Nxh3+ {[%clk 0:01:08]} 20. gxh3 {[%clk 0:01:37]}  Qxe8 {[%clk 0:01:09]} 21. Kg2 {[%clk 0:01:21]}  Qe4 {[%clk 0:01:01]} 22. Rh1 {[%clk 0:01:10]}  Bb7 {[%clk 0:00:57]} 23. Qd1 {[%clk 0:01:09]}  Bxb2 {[%clk 0:00:57]} 24. Qe2 {[%clk 0:00:48]}  Be5 {[%clk 0:00:52]} 25. Rd1 {[%clk 0:00:36]}  b3 {[%clk 0:00:48]} 26. Rd8+ {[%clk 0:00:16]}  Kg7 {[%clk 0:00:48]} 27. Rd2 {[%clk 0:00:14]}  b2 {[%clk 0:00:46]} 28. Rd1 {[%clk 0:00:09]}  b1=Q {[%clk 0:00:44]} 29. Rxb1 {[%clk 0:00:09]}  Qxb1 {[%clk 0:00:44]} 30. Qd2 {[%clk 0:00:04]}  Qe4 {[%clk 0:00:43]} 31. Qe2 {[%clk 0:00:00]}  g5 {[%clk 0:00:43]} 0-1


[Site "https://www.chess.com"]

[Event "Titled Tuesday Blitz July 18 Early 2023"]
[White "Sliwicki, Damian"]
[Black "Ovchinnikov, Vsevolod"]
[WhiteFideId "1127128"]
[BlackFideId "24176842"]
[WhiteElo "2448"]
[BlackElo "2634"]
[Result "0-1"]
[Round "3"]
[TimeControl "180+2"]
[Date "2023.07.18"]
[WhiteClock "0:00:30"]
[BlackClock "0:00:07"]
[Board "94"]

1. e4 {[%clk 0:03:00]}  g6 {[%clk 0:02:59]} 2. d4 {[%clk 0:02:58]}  Bg7 {[%clk 0:03:00]} 3. Nc3 {[%clk 0:02:58]}  d6 {[%clk 0:03:00]} 4. h4 {[%clk 0:02:57]}  Nf6 {[%clk 0:02:55]} 5. h5 {[%clk 0:02:56]}  Nxh5 {[%clk 0:02:55]} 6. Bc4 {[%clk 0:02:38]}  Nf6 {[%clk 0:02:52]} 7. Bh6 {[%clk 0:02:34]}  Bxh6 {[%clk 0:02:50]} 8. Rxh6 {[%clk 0:02:35]}  Nc6 {[%clk 0:02:47]} 9. Nf3 {[%clk 0:02:32]}  Bg4 {[%clk 0:02:44]} 10. Qd3 {[%clk 0:02:22]}  Bxf3 {[%clk 0:02:34]} 11. gxf3 {[%clk 0:02:23]}  e5 {[%clk 0:02:34]} 12. O-O-O {[%clk 0:02:12]}  Nxd4 {[%clk 0:02:27]} 13. f4 {[%clk 0:02:04]}  Ng4 {[%clk 0:02:12]} 14. fxe5 {[%clk 0:02:04]}  dxe5 {[%clk 0:01:32]} 15. Qg3 {[%clk 0:02:03]}  Qg5+ {[%clk 0:01:28]} 16. Kb1 {[%clk 0:01:55]}  Qxh6 {[%clk 0:00:37]} 17. Qxg4 {[%clk 0:01:55]}  Rd8 {[%clk 0:00:31]} 18. Nd5 {[%clk 0:01:54]}  c6 {[%clk 0:00:27]} 19. Nc7+ {[%clk 0:01:41]}  Ke7 {[%clk 0:00:17]} 20. Qg3 {[%clk 0:01:36]}  Qf4 {[%clk 0:00:17]} 21. Qa3+ {[%clk 0:01:36]}  Kf6 {[%clk 0:00:16]} 22. Rd3 {[%clk 0:01:27]}  Rd7 {[%clk 0:00:03]} 23. c3 {[%clk 0:01:22]}  Rxc7 {[%clk 0:00:04]} 24. Qd6+ {[%clk 0:01:22]}  Kg7 {[%clk 0:00:03]} 25. Qxc7 {[%clk 0:01:20]}  Nb5 {[%clk 0:00:04]} 26. Qe7 {[%clk 0:01:17]}  Rf8 {[%clk 0:00:03]} 27. a4 {[%clk 0:01:14]}  Qxf2 {[%clk 0:00:02]} 28. axb5 {[%clk 0:01:13]}  cxb5 {[%clk 0:00:02]} 29. Qxe5+ {[%clk 0:01:13]}  Kg8 {[%clk 0:00:02]} 30. Bb3 {[%clk 0:01:12]}  Qf1+ {[%clk 0:00:02]} 31. Rd1 {[%clk 0:01:11]}  Qe2 {[%clk 0:00:03]} 32. Qf6 {[%clk 0:01:09]}  a5 {[%clk 0:00:03]} 33. Rf1 {[%clk 0:01:08]}  Qxe4+ {[%clk 0:00:02]} 34. Ka1 {[%clk 0:01:08]}  Qe8 {[%clk 0:00:03]} 35. Rh1 {[%clk 0:01:05]}  a4 {[%clk 0:00:03]} 36. Qh4 {[%clk 0:01:05]}  h5 {[%clk 0:00:03]} 37. Bd5 {[%clk 0:01:03]}  Qd7 {[%clk 0:00:03]} 38. Qd4 {[%clk 0:00:58]}  Rd8 {[%clk 0:00:03]} 39. Rd1 {[%clk 0:00:58]}  Kh7 {[%clk 0:00:03]} 40. Qf6 {[%clk 0:00:57]}  Qc7 {[%clk 0:00:03]} 41. Rd4 {[%clk 0:00:54]}  Rd7 {[%clk 0:00:03]} 42. Qg5 {[%clk 0:00:51]}  a3 {[%clk 0:00:03]} 43. Be4 {[%clk 0:00:50]}  axb2+ {[%clk 0:00:03]} 44. Kxb2 {[%clk 0:00:49]}  Rxd4 {[%clk 0:00:04]} 45. Qxh5+ {[%clk 0:00:50]}  Kg7 {[%clk 0:00:04]} 46. Qf3 {[%clk 0:00:45]}  Rd2+ {[%clk 0:00:05]} 47. Kc1 {[%clk 0:00:44]}  Rd6 {[%clk 0:00:05]} 48. Qf4 {[%clk 0:00:43]}  Rd7 {[%clk 0:00:05]} 49. Qe3 {[%clk 0:00:42]}  b6 {[%clk 0:00:05]} 50. Bc2 {[%clk 0:00:41]}  Qc5 {[%clk 0:00:05]} 51. Qg3 {[%clk 0:00:40]}  Re7 {[%clk 0:00:06]} 52. Kb2 {[%clk 0:00:39]}  Re3 {[%clk 0:00:06]} 53. Qf4 {[%clk 0:00:32]}  Qxc3+ {[%clk 0:00:06]} 54. Kb1 {[%clk 0:00:33]}  Re1+ {[%clk 0:00:07]} 55. Bd1 {[%clk 0:00:30]}  Rxd1+ {[%clk 0:00:07]} 56. Ka2 {[%clk 0:00:30]}  Ra1# {[%clk 0:00:07]} 0-1


[Site "https://www.chess.com"]

[Event "Titled Tuesday Blitz July 18 Early 2023"]
[White "Florescu, Codrut-Constantin"]
[Black "Arnold, Ken"]
[WhiteFideId "1202200"]
[BlackFideId "2056836"]
[WhiteElo "2634"]
[BlackElo "2447"]
[Result "1-0"]
[Round "3"]
[TimeControl "180+2"]
[Date "2023.07.18"]
[WhiteClock "0:00:45"]
[BlackClock "0:00:12"]
[Board "95"]

1. d4 {[%clk 0:03:00]}  Nf6 {[%clk 0:02:54]} 2. Nf3 {[%clk 0:03:00]}  e6 {[%clk 0:02:55]} 3. c4 {[%clk 0:03:00]}  d5 {[%clk 0:02:55]} 4. Nc3 {[%clk 0:03:00]}  Be7 {[%clk 0:02:55]} 5. Bf4 {[%clk 0:02:59]}  c6 {[%clk 0:02:55]} 6. e3 {[%clk 0:02:59]}  O-O {[%clk 0:02:54]} 7. a3 {[%clk 0:02:59]}  b6 {[%clk 0:02:54]} 8. cxd5 {[%clk 0:02:57]}  cxd5 {[%clk 0:02:53]} 9. h3 {[%clk 0:02:54]}  Bb7 {[%clk 0:02:53]} 10. Bd3 {[%clk 0:02:53]}  Nc6 {[%clk 0:02:53]} 11. O-O {[%clk 0:02:52]}  Rc8 {[%clk 0:02:49]} 12. Qe2 {[%clk 0:02:51]}  Na5 {[%clk 0:02:46]} 13. Ne5 {[%clk 0:02:50]}  Nd7 {[%clk 0:02:43]} 14. b4 {[%clk 0:02:46]}  Nxe5 {[%clk 0:02:42]} 15. bxa5 {[%clk 0:02:36]}  Nxd3 {[%clk 0:02:41]} 16. Qxd3 {[%clk 0:02:35]}  Bd6 {[%clk 0:02:36]} 17. a6 {[%clk 0:02:29]}  Bc6 {[%clk 0:02:32]} 18. a4 {[%clk 0:02:26]}  Bxf4 {[%clk 0:02:31]} 19. exf4 {[%clk 0:02:26]}  Qd6 {[%clk 0:02:31]} 20. g3 {[%clk 0:02:25]}  Bd7 {[%clk 0:02:30]} 21. Nd1 {[%clk 0:02:19]}  Rc4 {[%clk 0:02:13]} 22. Ne3 {[%clk 0:02:18]}  Rxa4 {[%clk 0:02:13]} 23. Rxa4 {[%clk 0:02:17]}  Bxa4 {[%clk 0:02:12]} 24. f5 {[%clk 0:02:17]}  Rc8 {[%clk 0:02:07]} 25. f6 {[%clk 0:02:17]}  Qc6 {[%clk 0:02:01]} 26. Ng4 {[%clk 0:02:15]}  Bb5 {[%clk 0:01:58]} 27. Qe3 {[%clk 0:02:14]}  Qc2 {[%clk 0:01:30]} 28. Re1 {[%clk 0:02:10]}  Qd3 {[%clk 0:01:17]} 29. Qg5 {[%clk 0:01:58]}  Qg6 {[%clk 0:01:16]} 30. Rc1 {[%clk 0:01:40]}  Bc4 {[%clk 0:01:06]} 31. Qf4 {[%clk 0:01:33]}  h5 {[%clk 0:01:03]} 32. Ne5 {[%clk 0:01:29]}  Qxf6 {[%clk 0:01:02]} 33. Qe3 {[%clk 0:01:25]}  b5 {[%clk 0:00:58]} 34. Nd7 {[%clk 0:01:23]}  Qf5 {[%clk 0:00:50]} 35. Kh2 {[%clk 0:01:15]}  b4 {[%clk 0:00:41]} 36. Ne5 {[%clk 0:01:01]}  b3 {[%clk 0:00:37]} 37. g4 {[%clk 0:00:57]}  Qe4 {[%clk 0:00:28]} 38. Qxe4 {[%clk 0:00:49]}  dxe4 {[%clk 0:00:28]} 39. Rxc4 {[%clk 0:00:47]}  Rxc4 {[%clk 0:00:15]} 40. Nxc4 {[%clk 0:00:47]}  hxg4 {[%clk 0:00:14]} 41. hxg4 {[%clk 0:00:46]}  f6 {[%clk 0:00:14]} 42. Kg3 {[%clk 0:00:46]}  Kf7 {[%clk 0:00:12]} 43. Kf4 {[%clk 0:00:45]} 1-0


[Site "https://www.chess.com"]

[Event "Titled Tuesday Blitz July 18 Early 2023"]
[White "Sathish, Pranav"]
[Black "Agibileg, Uurtsaikh"]
[WhiteFideId "30967538"]
[BlackFideId "4901606"]
[WhiteElo "2446"]
[BlackElo "2629"]
[Result "1-0"]
[Round "3"]
[TimeControl "180+2"]
[Date "2023.07.18"]
[WhiteClock "0:01:20"]
[BlackClock "0:01:06"]
[Board "97"]

1. Nf3 {[%clk 0:03:00]}  Nf6 {[%clk 0:03:00]} 2. b3 {[%clk 0:03:00]}  g6 {[%clk 0:03:00]} 3. Bb2 {[%clk 0:02:59]}  Bg7 {[%clk 0:03:00]} 4. g3 {[%clk 0:02:59]}  O-O {[%clk 0:03:01]} 5. Bg2 {[%clk 0:02:59]}  c5 {[%clk 0:03:00]} 6. c4 {[%clk 0:02:58]}  d5 {[%clk 0:03:00]} 7. cxd5 {[%clk 0:02:56]}  Nxd5 {[%clk 0:02:59]} 8. Bxg7 {[%clk 0:02:53]}  Kxg7 {[%clk 0:03:00]} 9. O-O {[%clk 0:02:54]}  Nc6 {[%clk 0:02:59]} 10. d4 {[%clk 0:02:53]}  e6 {[%clk 0:02:37]} 11. dxc5 {[%clk 0:02:31]}  Qf6 {[%clk 0:02:25]} 12. Na3 {[%clk 0:02:26]}  b6 {[%clk 0:02:25]} 13. e4 {[%clk 0:02:18]}  Nc3 {[%clk 0:02:24]} 14. Qc2 {[%clk 0:02:17]}  Nb4 {[%clk 0:02:13]} 15. e5 {[%clk 0:02:04]}  Nxc2 {[%clk 0:02:12]} 16. exf6+ {[%clk 0:02:04]}  Kxf6 {[%clk 0:02:13]} 17. Nxc2 {[%clk 0:02:04]}  bxc5 {[%clk 0:02:14]} 18. Ne3 {[%clk 0:01:57]}  Ba6 {[%clk 0:02:14]} 19. Rfe1 {[%clk 0:01:56]}  Rad8 {[%clk 0:02:11]} 20. h4 {[%clk 0:01:55]}  h5 {[%clk 0:02:09]} 21. Bf1 {[%clk 0:01:47]}  Bxf1 {[%clk 0:02:07]} 22. Kxf1 {[%clk 0:01:46]}  Rd3 {[%clk 0:02:05]} 23. Kg2 {[%clk 0:01:45]}  Rfd8 {[%clk 0:02:04]} 24. Rec1 {[%clk 0:01:44]}  Nd5 {[%clk 0:01:46]} 25. Nxd5+ {[%clk 0:01:35]}  R8xd5 {[%clk 0:01:47]} 26. Rc2 {[%clk 0:01:34]}  e5 {[%clk 0:01:26]} 27. Ng5 {[%clk 0:01:26]}  R3d4 {[%clk 0:01:06]} 28. Rac1 {[%clk 0:01:20]} 1-0


[Site "https://www.chess.com"]